[Event "African Online-ch U20-Open 2021"]
[Site "Online"]
[Date "2021.02.01"]
[Round "3.19"]
[White "Tong, William M"]
[Black "Barrani, Adem"]
[Result "0-1"]
[ECO "B08"]
[WhiteElo "1985"]
[BlackElo "1396"]
[Annotator "RC"]
[PlyCount "166"]
[EventDate "2021.02.01"]
[EventType "swiss"]
[EventCountry "NET"]
[SourceTitle "playchess.com"]
[Source "ChessBase"]
[SourceQuality "1"]
[TimeControl "1500+10"]

1. e4 {[%emt 0:00:00]} d6 {[%emt 0:00:04]} 2. d4 {[%emt 0:00:09]} Nf6 {[%emt 0:00:03]} 3. Nc3 {[%emt 0:00:19]} g6 {[%emt 0:00:02]} 4. Be2 {[%emt 0:00:55]} Bg7 {[%emt 0:00:03]} 5. Be3 {[%emt 0:00:13]} O-O {[%emt 0:00:18]} 6. Nf3 {[%emt 0:00:06]} c6 {[%emt 0:00:08]} 7. O-O {[%emt 0:00:14]} b5 {[%emt 0:00:02]} 8. a3 {[%emt 0:02:36]} Nbd7 {[%emt 0:00:04]} 9. h3 {[%emt 0:00:43]} a6 {[%emt 0:00:07]} 10. Qd2 {[%emt 0:00:40]} c5 {[%emt 0:00:44]} 11. dxc5 {[%emt 0:03:40]} dxc5 {[%emt 0:00:35]} 12. e5 {[%emt 0:02:26]} Ne8 {[%emt 0:00:40]} 13. Bh6 {[%emt 0:01:33]} Bb7 {[%emt 0:00:34]} 14. Bxg7 {[%emt 0:00:21]} Nxg7 {[%emt 0:00:09]} 15. Rad1 {[%emt 0:00:38]} Nb6 {[%emt 0:01:30]} 16. Qxd8 {[%emt 0:01:07]} Raxd8 {[%emt 0:00:02]} 17. b3 {[%emt 0:00:01]} Ne6 {[%emt 0:00:46]} 18. Rfe1 {[%emt 0:11:52]} b4 {[%emt 0:00:13]} 19. axb4 {[%emt 0:00:07]} cxb4 {[%emt 0:00:03]} 20. Na4 {[%emt 0:00:09]} Nxa4 {[%emt 0:00:26]} 21. bxa4 {[%emt 0:00:03]} a5 {[%emt 0:00:05]} 22. Rxd8 {[%emt 0:00:24]} Rxd8 {[%emt 0:00:02]} 23. Bb5 {[%emt 0:00:04]} Bxf3 {[%emt 0:00:10]} 24. gxf3 {[%emt 0:00:04]} Nd4 {[%emt 0:00:01]} 25. Rf1 {[%emt 0:00:07]} Nxf3+ {[%emt 0:00:06]} 26. Kg2 {[%emt 0:00:02]} Nxe5 {[%emt 0:00:03]} 27. Re1 {[%emt 0:00:07]} f6 {[%emt 0:00:49]} 28. Rc1 {[%emt 0:00:35]} Rc8 {[%emt 0:00:26]} 29. Kf1 {[%emt 0:00:17]} b3 {[%emt 0:00:03]} 30. c4 {[%emt 0:00:06]} b2 {[%emt 0:01:35]} 31. Rb1 {[%emt 0:00:09]} Nxc4 {[%emt 0:00:02]} 32. Bxc4+ {[%emt 0:00:18]} Rxc4 {[%emt 0:00:03]} 33. Rxb2 {[%emt 0:00:02]} Rxa4 {[%emt 0:00:02]} 34. Rb7 {[%emt 0:00:15]} Kf7 {[%emt 0:00:04]} 35. Ke2 {[%emt 0:00:08]} Ra3 {[%emt 0:00:12]} 36. f3 {[%emt 0:00:05]} a4 {[%emt 0:00:04]} 37. Ra7 {[%emt 0:00:04]} Ra2+ {[%emt 0:00:07]} 38. Ke3 {[%emt 0:00:06]} a3 {[%emt 0:00:02]} 39. Kf4 {[%emt 0:00:11]} Ra1 {[%emt 0:00:07]} 40. h4 {[%emt 0:00:05]} h6 {[%emt 0:00:05]} 41. Kg3 {[%emt 0:00:16]} a2 {[%emt 0:00:03]} 42. Kg2 {[%emt 0:00:08]} Ke6 {[%emt 0:00:43]} 43. Ra6+ {[%emt 0:00:03]} Kf5 {[%emt 0:00:02]} 44. Ra5+ {[%emt 0:00:15]} e5 {[%emt 0:00:04]} 45. Ra4 {[%emt 0:00:09]} g5 {[%emt 0:00:25]} 46. h5 {[%emt 0:00:20]} Rd1 {[%emt 0:01:45]} 47. Rxa2 {[%emt 0:00:07]} Rd4 {[%emt 0:00:05]} 48. Ra8 {[%emt 0:00:27]} Rh4 {[%emt 0:00:04]} 49. Rh8 {[%emt 0:00:04]} Rxh5 {[%emt 0:00:02]} 50. Rh7 {[%emt 0:00:02]} Kg6 {[%emt 0:00:03]} 51. Re7 {[%emt 0:00:05]} Rh4 {[%emt 0:00:03]} 52. Re6 {[%emt 0:00:06]} Rb4 {[%emt 0:00:10]} 53. Rc6 {[%emt 0:00:04]} h5 {[%emt 0:00:03]} 54. Rc2 {[%emt 0:00:11]} Rb3 {[%emt 0:00:07]} 55. Rd2 {[%emt 0:00:07]} Kf5 {[%emt 0:00:11]} 56. Re2 {[%emt 0:00:12]} g4 {[%emt 0:00:11]} 57. fxg4+ {[%emt 0:00:05]} hxg4 {[%emt 0:00:05]} 58. Rf2+ {[%emt 0:00:02]} Kg5 {[%emt 0:00:10]} 59. Re2 {[%emt 0:00:05]} Kf4 {[%emt 0:00:07]} 60. Rf2+ {[%emt 0:00:02]} Rf3 {[%emt 0:00:03]} 61. Ra2 {[%emt 0:00:12]} e4 {[%emt 0:00:11]} 62. Ra6 {[%emt 0:00:08]} f5 {[%emt 0:00:02]} 63. Ra5 {[%emt 0:00:12]} g3 {[%emt 0:00:07]} 64. Ra2 {[%emt 0:00:20]} Rf2+ {[%emt 0:00:10]} 65. Rxf2+ {[%emt 0:00:03]} gxf2 {[%emt 0:00:01]} 66. Kxf2 {[%emt 0:00:02]} e3+ {[%emt 0:00:02]} 67. Kf1 {[%emt 0:00:02]} Kf3 {[%emt 0:00:03]} 68. Ke1 {[%emt 0:00:03]} e2 {[%emt 0:00:03]} 69. Kd2 {[%emt 0:00:02]} Kf2 {[%emt 0:00:01]} 70. Kc3 {[%emt 0:00:02]} e1=Q+ {[%emt 0:00:03]} 71. Kd4 {[%emt 0:00:02]} Qe4+ {[%emt 0:00:04]} 72. Kc5 {[%emt 0:00:02]} Qd3 {[%emt 0:00:02]} 73. Kc6 {[%emt 0:00:03]} Ke3 {[%emt 0:00:02]} 74. Kc5 {[%emt 0:00:03]} Qd4+ {[%emt 0:00:03]} 75. Kc6 {[%emt 0:00:02]} Ke4 {[%emt 0:00:04]} 76. Kc7 {[%emt 0:00:04]} Ke5 {[%emt 0:00:02]} 77. Kc6 {[%emt 0:00:01]} Qd6+ {[%emt 0:00:04]} 78. Kb5 {[%emt 0:00:06]} Qc7 {[%emt 0:00:03]} 79. Kb4 {[%emt 0:00:09]} Kd5 {[%emt 0:00:02]} 80. Kb3 {[%emt 0:00:05]} Kd4 {[%emt 0:00:01]} 81. Ka4 {[%emt 0:00:04]} Qb6 {[%emt 0:00:03]} 82. Ka3 {[%emt 0:00:05]} Kc3 {[%emt 0:00:03]} 83. Ka2 {[%emt 0:00:05]} Qb2# {[%emt 0:00:02]} 0-1

[Event "African Online-ch U20-Open 2021"]
[Site "Online"]
[Date "2021.02.01"]
[Round "3.20"]
[White "Shah, Darshan Samir"]
[Black "Meise, Keagen"]
[Result "1-0"]
[ECO "E65"]
[WhiteElo "1502"]
[BlackElo "1200"]
[Annotator "NA RC"]
[PlyCount "233"]
[EventDate "2021.02.01"]
[EventType "swiss"]
[EventCountry "NET"]
[SourceTitle "playchess.com"]
[Source "ChessBase"]
[SourceQuality "1"]
[TimeControl "1500+10"]

1. Nf3 {[%emt 0:00:00]} Nf6 {[%emt 0:00:10]} 2. c4 {[%emt 0:00:10]} c5 {[%emt 0:00:06]} 3. Nc3 {[%emt 0:00:07]} g6 {[%emt 0:00:03]} 4. g3 {[%emt 0:00:08]} Bg7 {[%emt 0:00:03]} 5. Bg2 {[%emt 0:00:07]} O-O {[%emt 0:00:04]} 6. O-O {[%emt 0:00:07]} d6 {[%emt 0:00:03]} 7. d4 {[%emt 0:00:11]} cxd4 {[%emt 0:00:13]} 8. Nxd4 {[%emt 0:00:08]} Qc7 {[%emt 0:00:13]} 9. Qd3 {[%emt 0:01:08]} a6 {[%emt 0:00:07]} 10. Be3 {[%emt 0:00:34]} Nbd7 {[%emt 0:00:41]} 11. b3 {[%emt 0:00:44]} Re8 {[%emt 0:01:31]} 12. Qd2 {[%emt 0:01:51]} Ne5 {[%emt 0:00:48]} 13. h3 {[%emt 0:00:26]} Nc6 {[%emt 0:00:53]} 14. Rfd1 {[%emt 0:01:26]} Bd7 {[%emt 0:03:33]} 15. Rac1 {[%emt 0:02:41]} Qa5 {[%emt 0:05:05]} 16. a4 {[%emt 0:01:39]} Rab8 {[%emt 0:01:58]} 17. Rb1 {[%emt 0:01:53]} Nxd4 {[%emt 0:00:30]} 18. Bxd4 {[%emt 0:00:25]} Bc6 {[%emt 0:00:25]} 19. e4 {[%emt 0:01:31]} Qc7 {[%emt 0:04:23]} 20. Ba7 {[%emt 0:02:37]} Rbc8 {[%emt 0:00:31]} 21. Be3 {[%emt 0:01:46]} Qd7 {[%emt 0:01:18]} 22. Bb6 {[%emt 0:01:12]} Nh5 {[%emt 0:00:57]} 23. Nd5 {[%emt 0:00:45]} Bxd5 {[%emt 0:00:07]} 24. Qxd5 {[%emt 0:00:31]} Nf6 {[%emt 0:00:43]} 25. Qd3 {[%emt 0:00:37]} h5 {[%emt 0:01:13]} 26. e5 {[%emt 0:00:26]} Nh7 {[%emt 0:00:29]} 27. exd6 {[%emt 0:00:15]} exd6 {[%emt 0:00:09]} 28. c5 {[%emt 0:00:11]} Re6 {[%emt 0:01:02]} 29. cxd6 {[%emt 0:00:11]} Be5 {[%emt 0:00:10]} 30. Bc7 {[%emt 0:00:30]} Bxd6 {[%emt 0:00:37]} 31. Bxd6 {[%emt 0:00:11]} Rd8 {[%emt 0:00:01]} 32. Qc4 {[%emt 0:01:00]} Rxd6 {[%emt 0:00:18]} 33. Rxd6 {[%emt 0:00:11]} Qxd6 {[%emt 0:00:02]} 34. Bxb7 {[%emt 0:00:10]} a5 {[%emt 0:00:13]} 35. Rc1 {[%emt 0:00:22]} Nf6 {[%emt 0:00:23]} 36. Qa6 {[%emt 0:01:05]} Qe5 {[%emt 0:00:33]} 37. Qc4 {[%emt 0:00:56]} Kg7 {[%emt 0:00:23]} 38. Bg2 {[%emt 0:00:18]} Qd6 {[%emt 0:00:14]} 39. h4 {[%emt 0:00:57]} Qd2 {[%emt 0:00:03]} 40. Qc2 {[%emt 0:00:12]} Qd4 {[%emt 0:00:08]} 41. Qc5 {[%emt 0:00:20]} Qd2 {[%emt 0:00:08]} 42. Qc2 {[%emt 0:00:06]} Qd4 {[%emt 0:00:08]} 43. Kh2 {[%emt 0:00:13]} Ng4+ {[%emt 0:00:06]} 44. Kg1 {[%emt 0:00:10]} Kh7 {[%emt 0:00:04]} 45. Qc5 {[%emt 0:00:13]} Qd2 {[%emt 0:00:04]} 46. Rf1 {[%emt 0:00:10]} Re8 {[%emt 0:00:23]} 47. Qd5 {[%emt 0:00:12]} Qxd5 {[%emt 0:00:31]} 48. Bxd5 {[%emt 0:00:03]} Kg7 {[%emt 0:00:02]} 49. Bc4 {[%emt 0:00:10]} Nf6 {[%emt 0:00:08]} 50. Kg2 {[%emt 0:00:13]} Re7 {[%emt 0:00:02]} 51. f3 {[%emt 0:00:07]} Kf8 {[%emt 0:00:11]} 52. Rf2 {[%emt 0:00:12]} Ra7 {[%emt 0:00:02]} 53. Kh3 {[%emt 0:00:14]} Nd7 {[%emt 0:00:05]} 54. f4 {[%emt 0:00:16]} Nb6 {[%emt 0:00:03]} 55. Bb5 {[%emt 0:00:13]} Nd5 {[%emt 0:00:04]} 56. f5 {[%emt 0:00:07]} Kg7 {[%emt 0:00:12]} 57. Rf3 {[%emt 0:00:10]} Nf6 {[%emt 0:00:14]} 58. fxg6 {[%emt 0:00:09]} fxg6 {[%emt 0:00:04]} 59. Re3 {[%emt 0:00:10]} Ng4 {[%emt 0:00:02]} 60. Re8 {[%emt 0:00:09]} Nf6 {[%emt 0:00:05]} 61. Re6 {[%emt 0:00:07]} Ng4 {[%emt 0:00:12]} 62. Be2 {[%emt 0:00:23]} Nf6 {[%emt 0:00:06]} 63. Ra6 {[%emt 0:00:17]} Rxa6 {[%emt 0:00:20]} 64. Bxa6 {[%emt 0:00:03]} Nd5 {[%emt 0:00:03]} 65. Bc4 {[%emt 0:00:04]} Ne3 {[%emt 0:00:04]} 66. Bb5 {[%emt 0:00:06]} Kf6 {[%emt 0:00:08]} 67. Kh2 {[%emt 0:00:06]} Nc2 {[%emt 0:00:07]} 68. Kg2 {[%emt 0:00:07]} Nd4 {[%emt 0:00:03]} 69. Kf2 {[%emt 0:00:13]} Nxb3 {[%emt 0:00:05]} 70. Ke3 {[%emt 0:00:08]} Kf5 {[%emt 0:00:54]} 71. Bd7+ {[%emt 0:00:07]} Ke5 {[%emt 0:00:09]} 72. Be8 {[%emt 0:00:02]} Kf6 {[%emt 0:00:02]} 73. Ke4 {[%emt 0:00:10]} Nc5+ {[%emt 0:00:07]} 74. Kd4 {[%emt 0:00:03]} Ne6+ {[%emt 0:00:30]} 75. Kc4 {[%emt 0:00:14]} Nc7 {[%emt 0:00:04]} 76. Bd7 {[%emt 0:00:22]} Ke7 {[%emt 0:00:14]} 77. Bc6 {[%emt 0:00:15]} Kf6 {[%emt 0:00:18]} 78. Kc5 {[%emt 0:00:20]} Ne6+ {[%emt 0:00:13]} 79. Kb5 {[%emt 0:00:12]} Nd4+ {[%emt 0:00:02]} 80. Kb6 {[%emt 0:00:05]} Kf5 {[%emt 0:00:13]} 81. Bd7+ {[%emt 0:00:11]} Kf6 {[%emt 0:00:21]} 82. Kxa5 {[%emt 0:00:08]} g5 {[%emt 0:00:04]} 83. hxg5+ {[%emt 0:00:21]} Kxg5 {[%emt 0:00:02]} 84. Kb6 {[%emt 0:00:01]} Nb3 {[%emt 0:00:18]} 85. Be6 {[%emt 0:00:11]} Nd4 {[%emt 0:00:04]} 86. Bd5 {[%emt 0:00:38]} Kg4 {[%emt 0:00:03]} 87. a5 {[%emt 0:00:01]} Kxg3 {[%emt 0:00:03]} 88. a6 {[%emt 0:00:02]} h4 {[%emt 0:00:02]} 89. a7 {[%emt 0:00:02]} h3 {[%emt 0:00:07]} 90. a8=Q {[%emt 0:00:04]} h2 {[%emt 0:00:04]} 91. Qg8+ {[%emt 0:00:05]} Kf4 {[%emt 0:00:17]} 92. Qg2 {[%emt 0:00:23]} Ke5 {[%emt 0:00:12]} 93. Bc6 {[%emt 0:00:10]} h1=B {[%emt 0:00:17]} 94. Qxh1 {[%emt 0:00:04]} Nf5 {[%emt 0:00:06]} 95. Qh5 {[%emt 0:00:03]} Kf6 {[%emt 0:00:02]} 96. Qf3 {[%emt 0:00:08]} Kg5 {[%emt 0:00:05]} 97. Qg2+ {[%emt 0:00:11]} Kf6 {[%emt 0:00:04]} 98. Bd7 {[%emt 0:00:13]} Ne7 {[%emt 0:00:03]} 99. Qf3+ {[%emt 0:00:05]} Kg7 {[%emt 0:00:06]} 100. Kc7 {[%emt 0:00:07]} Ng6 {[%emt 0:00:05]} 101. Kd8 {[%emt 0:00:10]} Kh6 {[%emt 0:00:12]} 102. Qf6 {[%emt 0:00:14]} Kh5 {[%emt 0:00:23]} 103. Be8 {[%emt 0:00:04]} Kg4 {[%emt 0:00:06]} 104. Qxg6+ {[%emt 0:00:05]} Kf4 {[%emt 0:00:02]} 105. Bd7 {[%emt 0:00:04]} Ke5 {[%emt 0:00:03]} 106. Qf5+ {[%emt 0:00:03]} Kd6 {[%emt 0:00:02]} 107. Qe6+ {[%emt 0:00:02]} Kc5 {[%emt 0:00:01]} 108. Qe5+ {[%emt 0:00:02]} Kc4 {[%emt 0:00:04]} 109. Be6+ {[%emt 0:00:02]} Kd3 {[%emt 0:00:03]} 110. Qf4 {[%emt 0:00:06]} Kc3 {[%emt 0:00:01]} 111. Qc4+ {[%emt 0:00:02]} Kd2 {[%emt 0:00:02]} 112. Qb3 {[%emt 0:00:03]} Ke2 {[%emt 0:00:02]} 113. Bg4+ {[%emt 0:00:02]} Kd2 {[%emt 0:00:04]} 114. Kd7 {[%emt 0:00:03]} Kc1 {[%emt 0:00:08]} 115. Qc3+ {[%emt 0:00:19]} Kb1 {[%emt 0:00:03]} 116. Bf5+ {[%emt 0:00:02]} Ka2 {[%emt 0:00:02]} 117. Qb4 {[%emt 0:00:05]} 1-0

[Event "African Online-ch U20-Open 2021"]
[Site "Online"]
[Date "2021.02.01"]
[Round "3.21"]
[White "Karania, Hardiv"]
[Black "Masaiti, Gideon"]
[Result "0-1"]
[ECO "D30"]
[WhiteElo "1317"]
[BlackElo "1442"]
[Annotator "NA RC"]
[PlyCount "104"]
[EventDate "2021.02.01"]
[EventType "swiss"]
[EventCountry "NET"]
[SourceTitle "playchess.com"]
[Source "ChessBase"]
[SourceQuality "1"]
[TimeControl "1500+10"]

1. d4 {[%emt 0:00:00]} e6 {[%emt 0:00:04]} 2. c4 {[%emt 0:00:28]} d5 {[%emt 0:00:05]} 3. cxd5 {[%emt 0:00:11]} exd5 {[%emt 0:00:03]} 4. e3 {[%emt 0:00:13]} Nf6 {[%emt 0:00:04]} 5. Bd3 {[%emt 0:00:06]} Bd6 {[%emt 0:00:03]} 6. Nf3 {[%emt 0:00:05]} O-O {[%emt 0:00:04]} 7. O-O {[%emt 0:00:06]} Bg4 {[%emt 0:00:04]} 8. h3 {[%emt 0:00:13]} Bh5 {[%emt 0:00:07]} 9. Nbd2 {[%emt 0:00:07]} Nbd7 {[%emt 0:00:05]} 10. b3 {[%emt 0:00:38]} Re8 {[%emt 0:00:13]} 11. Bb2 {[%emt 0:00:06]} c6 {[%emt 0:00:05]} 12. Qc2 {[%emt 0:00:30]} Qc7 {[%emt 0:00:08]} 13. Rac1 {[%emt 0:01:01]} Bxf3 {[%emt 0:00:08]} 14. Nxf3 {[%emt 0:00:03]} Ne4 {[%emt 0:00:03]} 15. Rcd1 {[%emt 0:01:39]} Ndf6 {[%emt 0:00:11]} 16. Qc1 {[%emt 0:00:25]} Rac8 {[%emt 0:00:14]} 17. Ba3 {[%emt 0:00:03]} c5 {[%emt 0:00:44]} 18. dxc5 {[%emt 0:00:55]} Nxc5 {[%emt 0:00:12]} 19. Bf5 {[%emt 0:00:31]} Ne6 {[%emt 0:02:02]} 20. Qxc7 {[%emt 0:00:23]} Bxc7 {[%emt 0:00:05]} 21. Nd4 {[%emt 0:02:22]} Nxd4 {[%emt 0:00:58]} 22. Rxd4 {[%emt 0:00:13]} Rcd8 {[%emt 0:00:13]} 23. Bc5 {[%emt 0:00:38]} b6 {[%emt 0:00:26]} 24. Ba3 {[%emt 0:00:10]} g6 {[%emt 0:00:11]} 25. Bc2 {[%emt 0:00:23]} Ne4 {[%emt 0:00:40]} 26. Bb2 {[%emt 0:00:33]} Be5 {[%emt 0:00:14]} 27. f3 {[%emt 0:02:53]} Ng3 {[%emt 0:00:42]} 28. Re1 {[%emt 0:00:14]} Bxd4 {[%emt 0:00:09]} 29. Bxd4 {[%emt 0:00:04]} Rc8 {[%emt 0:00:04]} 30. Bd3 {[%emt 0:00:17]} Nf5 {[%emt 0:00:19]} 31. Bb5 {[%emt 0:00:55]} Nxd4 {[%emt 0:00:24]} 32. Bxe8 {[%emt 0:00:08]} Rxe8 {[%emt 0:00:03]} 33. Kf2 {[%emt 0:00:43]} Ne6 {[%emt 0:00:29]} 34. Rd1 {[%emt 0:00:09]} Rd8 {[%emt 0:00:04]} 35. h4 {[%emt 0:00:16]} Kg7 {[%emt 0:00:04]} 36. g3 {[%emt 0:00:04]} Kf6 {[%emt 0:00:03]} 37. g4 {[%emt 0:00:55]} d4 {[%emt 0:00:28]} 38. e4 {[%emt 0:00:44]} Nf4 {[%emt 0:00:06]} 39. Kg3 {[%emt 0:00:09]} Ne2+ {[%emt 0:00:03]} 40. Kf2 {[%emt 0:00:02]} d3 {[%emt 0:00:03]} 41. Ke3 {[%emt 0:00:06]} Nc3 {[%emt 0:00:14]} 42. Rd2 {[%emt 0:00:22]} h6 {[%emt 0:00:06]} 43. a4 {[%emt 0:00:15]} g5 {[%emt 0:00:24]} 44. h5 {[%emt 0:00:13]} Ke5 {[%emt 0:00:03]} 45. Rb2 {[%emt 0:01:07]} Nd1+ {[%emt 0:00:28]} 46. Kd2 {[%emt 0:00:09]} Nxb2 {[%emt 0:00:03]} 47. b4 {[%emt 0:00:16]} Nc4+ {[%emt 0:00:06]} 48. Kd1 {[%emt 0:00:04]} d2 {[%emt 0:00:04]} 49. a5 {[%emt 0:02:27]} Ne3+ {[%emt 0:00:04]} 50. Ke2 {[%emt 0:01:59]} Kf4 {[%emt 0:00:37]} 51. axb6 {[%emt 0:01:06]} d1=Q+ {[%emt 0:00:06]} 52. Kf2 {[%emt 0:00:07]} Rd2# {[%emt 0:00:05]} 0-1

[Event "African Online-ch U20-Open 2021"]
[Site "Online"]
[Date "2021.02.01"]
[Round "3.23"]
[White "Belattar, Mohamed Walid"]
[Black "Sparg, Nathan"]
[Result "0-1"]
[ECO "E01"]
[WhiteElo "1214"]
[BlackElo "1413"]
[Annotator "NA RC"]
[PlyCount "54"]
[EventDate "2021.02.01"]
[EventType "swiss"]
[EventCountry "NET"]
[SourceTitle "playchess.com"]
[Source "ChessBase"]
[SourceQuality "1"]
[TimeControl "1500+10"]

1. d4 {[%emt 0:00:00]} d5 {[%emt 0:00:14]} 2. Nf3 {[%emt 0:00:03]} Nf6 {[%emt 0:00:09]} 3. g3 {[%emt 0:00:02]} e6 {[%emt 0:00:09]} 4. Bg2 {[%emt 0:00:10]} Bd6 {[%emt 0:00:34]} 5. O-O {[%emt 0:00:13]} O-O {[%emt 0:00:04]} 6. c4 {[%emt 0:00:52]} c6 {[%emt 0:00:45]} 7. c5 {[%emt 0:00:49]} Bc7 {[%emt 0:00:51]} 8. Nc3 {[%emt 0:00:14]} Nbd7 {[%emt 0:00:38]} 9. Re1 {[%emt 0:00:30]} e5 {[%emt 0:02:03]} 10. e3 {[%emt 0:01:50]} e4 {[%emt 0:02:45]} 11. Nd2 {[%emt 0:00:37]} b6 {[%emt 0:01:18]} 12. b4 {[%emt 0:01:59]} a5 {[%emt 0:00:50]} 13. Qa4 {[%emt 0:03:30]} Bb7 {[%emt 0:03:34]} 14. b5 {[%emt 0:01:40]} cxb5 {[%emt 0:00:42]} 15. Qxb5 {[%emt 0:00:24]} Ba6 {[%emt 0:00:35]} 16. Qb2 {[%emt 0:00:32]} bxc5 {[%emt 0:00:29]} 17. dxc5 {[%emt 0:00:43]} Nxc5 {[%emt 0:00:17]} 18. Qa3 {[%emt 0:01:01]} Nd3 {[%emt 0:00:49]} 19. Rd1 {[%emt 0:00:43]} Ng4 {[%emt 0:00:43]} 20. Ncxe4 {[%emt 0:04:26]} dxe4 {[%emt 0:00:58]} 21. Nxe4 {[%emt 0:00:19]} Nf6 {[%emt 0:03:11]} 22. Nxf6+ {[%emt 0:00:22]} Qxf6 {[%emt 0:00:04]} 23. Bxa8 {[%emt 0:04:15]} Qxf2+ {[%emt 0:01:38]} 24. Kh1 {[%emt 0:01:16]} Rxa8 {[%emt 0:00:19]} 25. Rb1 {[%emt 0:01:40]} Ne1 {[%emt 0:01:26]} 26. Rxe1 {[%emt 0:00:54]} Qxe1+ {[%emt 0:00:05]} 27. Kg2 {[%emt 0:00:09]} Qf1# {[%emt 0:00:02]} 0-1

[Event "African Online-ch U20-Open 2021"]
[Site "Online"]
[Date "2021.02.01"]
[Round "4.3"]
[White "Mohamed Abderrahim, Taleb Mohamed"]
[Black "Vasco Mateus Felizardo Viageir"]
[Result "1-0"]
[ECO "B20"]
[WhiteElo "1799"]
[BlackElo "1862"]
[Annotator "NA RC"]
[PlyCount "61"]
[EventDate "2021.02.01"]
[EventType "swiss"]
[EventCountry "NET"]
[SourceTitle "playchess.com"]
[Source "ChessBase"]
[SourceQuality "1"]
[TimeControl "1500+10"]

1. e4 {[%emt 0:00:00]} c5 {[%emt 0:00:03]} 2. a3 {[%emt 0:00:04]} e6 {[%emt 0:00:06]} 3. b4 {[%emt 0:00:03]} cxb4 {[%emt 0:00:40]} 4. axb4 {[%emt 0:00:03]} Bxb4 {[%emt 0:00:27]} 5. Bb2 {[%emt 0:00:03]} Bf8 {[%emt 0:00:10]} 6. d4 {[%emt 0:00:31]} d5 {[%emt 0:00:22]} 7. e5 {[%emt 0:00:15]} Nc6 {[%emt 0:00:03]} 8. Nf3 {[%emt 0:00:18]} Nge7 {[%emt 0:00:43]} 9. Bd3 {[%emt 0:00:16]} Qb6 {[%emt 0:01:15]} 10. Ba3 {[%emt 0:01:27]} Bd7 {[%emt 0:01:22]} 11. c3 {[%emt 0:00:36]} Ng6 {[%emt 0:00:14]} 12. Bxf8 {[%emt 0:00:31]} Nxf8 {[%emt 0:00:04]} 13. Na3 {[%emt 0:00:50]} a6 {[%emt 0:02:39]} 14. Nb5 {[%emt 0:00:17]} Nxe5 {[%emt 0:00:23]} 15. Nxe5 {[%emt 0:02:01]} Bxb5 {[%emt 0:00:03]} 16. Bxb5+ {[%emt 0:00:03]} Qxb5 {[%emt 0:00:06]} 17. Rb1 {[%emt 0:00:03]} Qa5 {[%emt 0:00:03]} 18. Rxb7 {[%emt 0:00:08]} Qxc3+ {[%emt 0:00:03]} 19. Kf1 {[%emt 0:00:04]} Qa3 {[%emt 0:00:56]} 20. Qc2 {[%emt 0:05:14]} Nd7 {[%emt 0:04:57]} 21. Nxd7 {[%emt 0:01:25]} Rd8 {[%emt 0:05:08]} 22. Qc6 {[%emt 0:04:16]} Qd3+ {[%emt 0:00:08]} 23. Ke1 {[%emt 0:00:49]} Qe4+ {[%emt 0:00:11]} 24. Kd2 {[%emt 0:03:53]} Qxd4+ {[%emt 0:00:04]} 25. Kc2 {[%emt 0:00:09]} Qc4+ {[%emt 0:00:30]} 26. Qxc4 {[%emt 0:00:04]} dxc4 {[%emt 0:00:02]} 27. Rd1 {[%emt 0:00:15]} h5 {[%emt 0:01:13]} 28. Nf6+ {[%emt 0:00:17]} gxf6 {[%emt 0:00:05]} 29. Rxd8+ {[%emt 0:00:02]} Kxd8 {[%emt 0:00:04]} 30. Rb8+ {[%emt 0:00:02]} Kc7 {[%emt 0:01:38]} 31. Rxh8 {[%emt 0:00:05]} 1-0

[Event "African Online-ch U20-Open 2021"]
[Site "Online"]
[Date "2021.02.01"]
[Round "4.8"]
[White "Junior, Domingos"]
[Black "Darius Patlo Banda"]
[Result "1-0"]
[ECO "C56"]
[WhiteElo "1894"]
[BlackElo "1369"]
[Annotator "NA RC"]
[PlyCount "51"]
[EventDate "2021.02.01"]
[EventType "swiss"]
[EventCountry "NET"]
[SourceTitle "playchess.com"]
[Source "ChessBase"]
[SourceQuality "1"]
[TimeControl "1500+10"]

1. e4 {[%emt 0:00:00]} e5 {[%emt 0:00:05]} 2. Nf3 {[%emt 0:00:03]} Nc6 {[%emt 0:00:05]} 3. d4 {[%emt 0:00:05]} exd4 {[%emt 0:00:08]} 4. Bc4 {[%emt 0:00:03]} Nf6 {[%emt 0:00:05]} 5. O-O {[%emt 0:00:07]} Bc5 {[%emt 0:00:29]} 6. e5 {[%emt 0:00:06]} d5 {[%emt 0:00:09]} 7. exf6 {[%emt 0:00:03]} dxc4 {[%emt 0:00:02]} 8. Re1+ {[%emt 0:00:04]} Be6 {[%emt 0:00:04]} 9. fxg7 {[%emt 0:00:03]} Rg8 {[%emt 0:00:05]} 10. Bg5 {[%emt 0:00:05]} Qd5 {[%emt 0:00:12]} 11. Nc3 {[%emt 0:00:04]} Qf5 {[%emt 0:00:17]} 12. Ne4 {[%emt 0:00:04]} Rxg7 {[%emt 0:00:26]} 13. Nh4 {[%emt 0:00:21]} Qd5 {[%emt 0:00:32]} 14. Nf6+ {[%emt 0:00:04]} Kf8 {[%emt 0:00:24]} 15. Nxd5 {[%emt 0:00:03]} Bxd5 {[%emt 0:00:05]} 16. Bh6 {[%emt 0:00:03]} Kg8 {[%emt 0:05:22]} 17. Bxg7 {[%emt 0:00:04]} Kxg7 {[%emt 0:00:09]} 18. Qg4+ {[%emt 0:00:20]} Kf8 {[%emt 0:02:53]} 19. Nf5 {[%emt 0:00:06]} Be6 {[%emt 0:03:50]} 20. Qg7+ {[%emt 0:00:04]} Ke8 {[%emt 0:04:01]} 21. Qg8+ {[%emt 0:00:05]} Bf8 {[%emt 0:03:22]} 22. Ng7+ {[%emt 0:00:06]} Ke7 {[%emt 0:01:11]} 23. Rxe6+ {[%emt 0:00:04]} Kd7 {[%emt 0:00:40]} 24. Qxf7+ {[%emt 0:00:05]} Be7 {[%emt 0:00:41]} 25. Rxe7+ {[%emt 0:00:03]} Nxe7 {[%emt 0:00:05]} 26. Re1 {[%emt 0:00:05]} 1-0